Cogmind - Beta 13 @@@ ROGUE MODE // 2024.04.05 @ 16:35:47 Player: graour Result: Destroyed by G-34 Mercenary with Small Laser Performance ------------- Evolutions (1) 500 Regions Visited (3) 600 Robots Destroyed (40) 200 Value Destroyed (452) 452 Prototype IDs (0) 0 Alien Tech Used (0) 0 Bonus (54) 54 TOTAL SCORE: 1806 Bonus ------- Follower Combat Kills 54 Cogmind --------- Core Integrity 0/400 Matter 300/300 Energy 98/100 System Corruption 5% Temperature Cool (7) Movement Walking (120) Location -9/Materials Parts ------- > --- POWER (2) -------- (None) > --- PROPULSION (3) --- Aluminum Leg > --- UTILITY (2) ------ Visual Processing Unit > --- WEAPON (2) ------- Hammer > --- INVENTORY (5) ---- ECM Suite ECM Suite Light Assault Rifle Peak State ------------ > --- POWER ------------ Light Ion Engine Light Ion Engine > --- PROPULSION ------- Light Treads Light Treads Light Treads > --- UTILITY ---------- Visual Processing Unit ECM Suite > --- WEAPON ----------- Hammer Mining Claw > --- INVENTORY -------- ECM Suite ECM Suite Light Assault Rifle [Rating: 10] Favorites ----------- Power Ion Engine Engine Ion Engine Propulsion Light Treads Treads Light Treads Leg Aluminum Leg Utility Visual Processing Unit Device ECM Suite Storage Medium Matter Pod Processor Visual Processing Unit Weapon Hammer Energy Gun EM Pulse Gun Ballistic Gun Assault Rifle Impact Weapon Hammer Slashing Weapon Mining Claw Build | -11 -10 -10 -9 ------- Run | Yrd Mat Min Mat Slots Evolved 2 | . . . 2 Power 1 | . . . 1 Propulsion 1 | . . . 1 Utility . | . . . . Weapon . | . . . . Parts Attached 23 | 7 6 4 6 Power 5 | 1 . 1 3 Engine 5 | 1 . 1 3 Core . | . . . . Reactor . | . . . . Propulsion 9 | 2 2 2 3 Treads 8 | 2 2 2 2 Leg 1 | . . . 1 Wheel . | . . . . Hover . | . . . . Flight . | . . . . Utility 5 | 2 3 . . Device 2 | . 2 . . Storage 2 | 2 . . . Processor 1 | . 1 . . Hackware . | . . . . Protection . | . . . . Artifact . | . . . . Weapon 4 | 2 1 1 . Energy Gun 1 | 1 . . . Energy Cannon . | . . . . Ballistic Gun 1 | 1 . . . Ballistic Cannon . | . . . . Launcher . | . . . . Special Weapon . | . . . . Impact Weapon 1 | . 1 . . Slashing Weapon 1 | . . 1 . Piercing Weapon . | . . . . Special Melee Weapon . | . . . . Unidentified Prototypes . | . . . . Corrupted Parts 2 | . . . 2 System Corruption 5 | . . . 5 Parts Lost 12 | . 1 1 10 Power 4 | . . . 4 Propulsion 5 | . . 1 4 Utility 2 | . 1 . 1 Weapon 1 | . . . 1 Highest Loss Streak 7 | . 1 1 7 To Critical Strikes 1 | . . 1 . Average Slot Usage (%) 89 | . 98 94 59 Engine 13 | . 14 14 13 Treads 22 | . 28 23 14 Device 11 | . 8 14 4 Storage 1 | . 7 . . Processor 12 | . 10 14 11 Energy Gun 2 | . 10 . . Ballistic Gun 8 | . 14 8 . Impact Weapon 11 | . 4 14 11 Slashing Weapon 3 | . . 4 3 Naked Turns . | . . . . Heaviest Build 16 | 16 16 11 16 Greatest Support 60 | 40 40 40 60 Greatest Overweight (x) 2 | . . . 2 Average Overweight (x) . | . . . . Largest Inventory Capacity 8 | 8 8 5 5 Average Capacity 5 | 5 5 5 5 Most Carried 5 | 3 5 5 5 Average Carried 4 | 2 4 4 3 Final Capacity 8 | 8 5 5 5 Final Carried 5 | 3 5 5 3 Class Distribution -------------------- 94% | Mutant 5% | Scavenger-Mutant Dominant Class ---------------- Mutant | -10/Materials Mutant | -10/Mines Mutant | -9/Materials Resources | -11 -10 -10 -9 ----------- Run | Yrd Mat Min Mat Matter Collected 491 | 277 109 40 65 Remotely . | . . . . Salvage Created 1451 | 99 302 875 175 Parts 54 | 2 11 30 11 Haulers Intercepted . | . . . . Recyclers Shooed 1 | . . 1 . Parts Field Recycled . | . . . . Retrieved Matter . | . . . . Parts Self-Destructed . | . . . . Prevented . | . . . . Kills | -11 -10 -10 -9 ------- Run | Yrd Mat Min Mat Combat Hostiles Destroyed 15 | . 5 2 8 Melee 8 | . 1 1 6 Guns 3 | . 3 . . Classes Destroyed 8 | 2 3 2 1 Worker 7 | 1 . 6 . Builder 1 | . . 1 . Tunneler 3 | . . 3 . Recycler 11 | 1 1 9 . Watcher 3 | . 3 . . Swarmer 10 | . 3 2 5 Grunt 3 | . 2 . 1 Sentry 2 | . . . 2 Best Kill Streak 5 | 2 3 5 4 Combat Bots Only 4 | . 3 1 4 Max Kills in Single Turn 1 | 1 1 1 1 Gunslinging . | . . . . Exploded . | . . . . Melee 1 | . 1 1 1 Uniques/NPCs Destroyed . | . . . . Combat | -11 -10 -10 -9 -------- Run | Yrd Mat Min Mat Hostile Shots Fired 185 | . 49 17 119 Missed 36 | . 18 1 17 Damage Taken 1706 | . 450 142 1114 Core 517 | . 98 8 411 Absorbed by Shields . | . . . . Core Remaining (%) 78 | 100 . 57 . Volleys Fired 19 | 9 10 . . Largest 2 | 2 2 . . Hottest 60 | 60 60 . . Shots Fired 38 | 18 20 . . Gun 38 | 18 20 . . Cannon . | . . . . Launcher . | . . . . Special . | . . . . Kinetic 19 | 9 10 . . Thermal . | . . . . Explosive . | . . . . Electromagnetic 19 | 9 10 . . Robot Hit Streak 2 | 2 2 . . Robot Miss Streak 4 | 4 4 . . Penetration Max . | . . . . Secondary Targets . | . . . . Shots Hit Robots 84 | 7 19 33 25 Core Hits 25 | 3 6 11 5 Critical Kills 4 | . . 2 2 Critical Parts Destroyed 7 | . 3 2 2 Critical Strikes 12 | . 3 4 5 Smash 12 | . 3 4 5 Melee Attacks 93 | . 19 42 32 Impact 76 | . 19 28 29 Slashing 17 | . . 14 3 Piercing . | . . . . Sneak Attacks 30 | . 1 28 1 Combat Hostiles . | . . . . Follow-up Attacks 4 | . . 3 1 Damage Inflicted 2661 | 187 466 1401 607 Guns 189 | 106 83 . . Cannons . | . . . . Explosions 81 | 81 . . . Melee 2382 | . 376 1401 605 Ramming 9 | . 7 . 2 Kinetic 77 | 36 41 . . Thermal 81 | 81 . . . Explosive . | . . . . Electromagnetic 112 | 70 42 . . Impact 1782 | . 376 870 536 Slashing 600 | . . 531 69 Piercing . | . . . . Highest Corruption 5 | . . . 5 Average Corruption 4 | . . . 4 Corruption Purged . | . . . . Corruption Blocked . | . . . . Effects 4 | . . . 4 Message Errors 1 | . . . 1 Matter Fused 2 | . . . 2 Data Loss (minor) 1 | . . . 1 Overload Shots . | . . . . Overflow Damage 551 | . 90 358 103 Projectiles . | . . . . Explosions . | . . . . Melee 551 | . 90 358 103 Knockbacks 2 | . . 2 . Impact 2 | . . 2 . Kinetic . | . . . . Secondary . | . . . . Self-Inflicted Damage . | . . . . Shots . | . . . . Rammed 4 | . 1 . 3 Targets Rammed 4 | . 1 . 3 Kicked . | . . . . Crushed . | . . . . Highest Temperature 13 | . . . 13 Average Temperature 9 | . . . 9 Received Heat Transfer 486 | . 204 . 282 Siege Activations . | . . . . Robots Corrupted . | . . . . Combat Hostiles . | . . . . Parts Fried 20 | 1 5 13 1 Impact Corruptions 31 | . 5 18 8 Robots Melted . | . . . . Combat Hostiles . | . . . . Parts Melted . | . . . . Heat Transferred 100 | 100 . . . Parts Sabotaged . | . . . . Parts Stolen . | . . . . Parts Stripped . | . . . . Power Chain Reactions 1 | 1 . . . Alert | -11 -10 -10 -9 ------- Run | Yrd Mat Min Mat Peak Influence 142 | 10 128 142 131 Initial 18 | . 6 18 13 Average 37 | 5 31 34 78 Maximum Alert Level . | . . . . Low Security (%) 100 | 100 100 100 100 Level 1 . | . . . . Level 2 . | . . . . Level 3 . | . . . . Level 4 . | . . . . Level 5 . | . . . . High Security . | . . . . Max Security . | . . . . Squads Dispatched 2 | . 1 . 1 Investigation 1 | . 1 . . Extermination . | . . . . Reinforcement 1 | . . . 1 Assault . | . . . . Garrison . | . . . . Intercept . | . . . . Searches Triggered . | . . . . Construction Impeded . | . . . . Haulers Reinforced . | . . . . Active Scanning Responses . | . . . . Cargo Convoy Interrupts . | . . . . Stealth | -11 -10 -10 -9 --------- Run | Yrd Mat Min Mat Distress Signals . | . . . . Communications Jammed . | . . . . Distress Signals . | . . . . Times Spotted 26 | . 8 6 12 Peak Tracking Total 4 | . 3 3 4 Tactical Retreats 1 | . 1 . . Traps | -11 -10 -10 -9 ------- Run | Yrd Mat Min Mat Traps Triggered 3 | . 3 . . Indirectly . | . . . . Trap Hack Attempts . | . . . . Triggered . | . . . . Disarmed . | . . . . Reprogrammed . | . . . . Reused . | . . . . Traps Extracted . | . . . . Installed . | . . . . Triggered . | . . . . Machines | -11 -10 -10 -9 ---------- Run | Yrd Mat Min Mat Machines Disabled . | . . . . Max in Single Turn . | . . . . Machines Repaired . | . . . . Machines Dismantled . | . . . . Machines Sabotaged . | . . . . Overloaded Fab Kills . | . . . . Hacking | -11 -10 -10 -9 --------- Run | Yrd Mat Min Mat Machines Accessed 6 | . 3 . 3 Terminals 6 | . 3 . 3 Fabricators . | . . . . Repair Stations . | . . . . Recycling Units . | . . . . Scanalyzers . | . . . . Garrison Access . | . . . . Total Hacks 13 | . 8 . 5 Successful 6 | . 4 . 2 Failed 7 | . 4 . 3 Catastrophic 1 | . . . 1 Database Lockouts . | . . . . Manual 5 | . 2 . 3 Terminals 13 | . 8 . 5 Fabricators . | . . . . Repair Stations . | . . . . Recycling Units . | . . . . Scanalyzers . | . . . . Garrison Access . | . . . . Terminal Hacks 6 | . 4 . 2 Record 1 | . 1 . . Alert Level 1 | . 1 . . Unreport Threat 2 | . 1 . 1 Transport Status 1 | . . . 1 Hauler Manifests 1 | . 1 . . Fabricator Hacks . | . . . . Repair Station Hacks . | . . . . Recycling Unit Hacks . | . . . . Scanalyzer . | . . . . Garrison Access Hacks . | . . . . Unauthorized Hacks . | . . . . Terminals . | . . . . Fabricators . | . . . . Repair Stations . | . . . . Recycling Units . | . . . . Scanalyzers . | . . . . Garrison Access . | . . . . Data Cores Recovered . | . . . . Used . | . . . . Hacking Detections 5 | . 3 . 2 Full Trace Events 1 | . . . 1 Feedback Events . | . . . . Feedback Blocked . | . . . . Robot Schematics Acquired . | . . . . Robots Built . | . . . . Authchips . | . . . . Time . | . . . . Total Robot Build Rating . | . . . . Part Schematics Acquired . | . . . . Parts Built . | . . . . Authchips . | . . . . Time . | . . . . Total Part Build Rating . | . . . . Parts Repaired . | . . . . Time . | . . . . Parts Recycled . | . . . . Recycled Matter . | . . . . Retrieved Matter . | . . . . Retrieved Components . | . . . . Parts Scanalyzed . | . . . . Part Schematics Acquired . | . . . . Parts Damaged . | . . . . Bothacking | -11 -10 -10 -9 ------------ Run | Yrd Mat Min Mat Used RIF Installer . | . . . . Robots Hacked . | . . . . Non-combat . | . . . . Combat . | . . . . Robot Hacks Applied . | . . . . Relay Couplers Released . | . . . . Fabnet Peak Effective % . | . . . . Robots Rewired . | . . . . Allies Hacked . | . . . . Hacks Repelled . | . . . . Allies | -11 -10 -10 -9 -------- Run | Yrd Mat Min Mat Total Allies 1 | . . 1 . Largest Group 1 | . . 1 1 Highest-Rated Group 31 | . . 31 31 Highest-Rated Ally 31 | . . 31 31 Total Orders . | . . . . Ally Attacks 9 | . . 5 4 Total Damage 146 | . . 83 63 Kills 4 | . . 2 2 Allies Corrupted . | . . . . Allies Melted . | . . . . Intel | -11 -10 -10 -9 ------- Run | Yrd Mat Min Mat Robot Analysis Total . | . . . . Derelict Logs Recovered 2 | . . 2 . Drone Launches . | . . . . Drone Recoveries . | . . . . Exploration | -11 -10 -10 -9 ------------- Run | Yrd Mat Min Mat Turns Passed 2489 | 222 488 1412 367 Spaces Moved 1354 | 119 243 812 180 Core 18 | 7 . . 11 Treads 1314 | 112 243 812 147 Legs 22 | . . . 22 Wheels . | . . . . Hover . | . . . . Flight . | . . . . Fastest Speed 50 | 50 160 160 50 Average Speed 157 | 153 160 160 148 Slowest Speed 160 | 160 160 160 160 Overloaded Moves . | . . . . Propulsion Burnouts . | . . . . Robots Hopped . | . . . . Cave-ins Triggered . | . . . . Exploration Rate (%) 36 | 6 37 85 18 Regions Visited 3 Branch Regions 1 Pre-discovered Areas 2 | . . 2 . Known Exits Taken . | . . . . Unknown Exits Taken 3 | 1 1 1 . Scrap Searched 1 | . . 1 . Spaces Dug . | . . . . Terrain Destroyed 6 | 6 . . . Melee . | . . . . Projectile . | . . . . AOE 6 | 6 . . . Terrain Rammed . | . . . . Walls Destroyed . | . . . . Machines Disabled . | . . . . Actions | -11 -10 -10 -9 --------- Run | Yrd Mat Min Mat Total 1504 | 137 289 856 222 Wait 3 | . . . 3 Move 1351 | 118 242 811 180 Hop . | . . . . Pick Up 8 | 3 3 2 . Fast Attach 16 | 7 4 1 4 Attach 3 | . . 1 2 Detach 3 | . 2 1 . Swap 4 | . 2 2 . Drop 8 | . 6 2 . Fire 19 | 9 10 . . Melee 85 | . 19 36 30 Ram . | . . . . Kick . | . . . . Crush 4 | . 1 . 3 Escape Stasis . | . . . . Rewire . | . . . . Trap . | . . . . Miscellaneous . | . . . . Route ------- -11/Scrapyard -10/Materials -10/Mines (discovered 2 exits: *Mat / [*Sub]) -9/Materials History --------- Turn | Location | Event 70 | -11/Scrapyard | Discovered new exit (range 15) 223 | -11/Scrapyard | Entered Materials 300 | -10/Materials | Build established: Mutant 537 | -10/Materials | Discovered new exit (range 13) 711 | -10/Materials | Entered Mines 743 | -10/Mines | Escorted by a lone wolf Derelict 763 | -10/Mines | Learned location of Storage (-9) 898 | -10/Mines | Learned location of Zion (-7) 1428 | -10/Mines | Learned Materials stockpile data 2032 | -10/Mines | Received a Rocket Launcher from a helpful Derelict 2075 | -10/Mines | Discovered new exit (range 8) 2080 | -10/Mines | Discovered new exit (range 9) 2123 | -10/Mines | Entered Materials 2123 | -9/Materials | Accompanied by 1 ally 2123 | -9/Materials | Evolved 2 slots: Power x1, Propulsion x1 2288 | -9/Materials | Core integrity fell below 50% 2312 | -9/Materials | Lost 7 parts (2p3n1u1w) 2440 | -9/Materials | Core integrity fell below 20% 2473 | -9/Materials | Lost 3 parts (2p1n) 2490 | -9/Materials | Destroyed by G-34 Mercenary with Small Laser Last Messages --------------- S-10 Pest system corrupted by crushing effect. S-10 Pest destroyed. Destroyed Flight Unit. S-10 Pest system corrupted by crushing effect. K-01 Serf collects debris. S-10 Pest misfires. S-10 Pest system terminally corrupted. Acquired 5 matter. K-01 Serf collects debris. G-34 Mercenary destroyed. K-01 Serf collects debris. Acquired Aluminum Leg. Acquired 10 matter. K-01 Serf collects debris. K-01 Serf cleans the Terminal. R-06 Scavenger collects Corrupted Flight Unit. Connecting with Terminal... R-06 Scavenger collects Corrupted Lgt. Assault Rifle. K-01 Serf collects debris. Map ----- +----------------------------------------------------+ | = %% % + """???????????????????????????????? | | ### ! # """???????????????????????????????? | | ??###### #???????????????????????????????????? | | ???????## ##???????????????????????????????????? | | ????????# #????????????????????????????????????? | | ????????# #????????????????????????????????????? | | ######### #????????????????????????????????????? | | ## ##???????????????????????????????????? | | ! # #???????????????????????????????????? | | # #???????????????????????????????????? | | + #???????????????????????????????????? | | "" """ # #???????????????????????????????????? | | "" """ # #???????????????????????????????????? | | "" """ ## ##??????????##???????????????????????? | | ## #?????###+## ????????????????????????? | | ######### #?????# ?????????????????????????? | | ######### #?????# ?????????????????????????? | | # # #?????# ??????????????????????????? | | # "" # #?????# #??????????????????????????? | | # "T # #?????# #??????????????????????????? | | # "" ] + #?????+ #??????????????????????????? | | # # #?????# ############??????? ???????? | | ######### ##???## ## #### ???????? | | ######## ##### # k a g ??????????? | | % # !!! #???????????????? | | T % T + @k!! #???????????????? | | %% # !!! #???????????????? | | +####### ##### # #???????????????? | | ???????###+###???## ## #???????????????? | | ???????? ????????# ## #???????????????? | | ?????? "??????????# ############???????????????? | | ?????# ?????????? #??????????????????????????? | | ????????????????### #??????????????????????????? | | ??????????????????# #??????????????????????????? | | ??????????????????# #??????????????????????????? | | ??????????????????# +??????????????????????????? | | ]?????????????????# #??????????????????????????? | | ??????????????????# #??????????????????????????? | | ??????????????????# #??????????????????????????? | | ??????????????????# #??????????????????????????? | | ??????????????????# #??????????????????????????? | | ??????????????????# #??????????????????????????? | | ??????????????????# #??????????????????????????? | | ?????????????????? ??????????????????????????? | | ?????????????????? ??????????????????????????? | | ?????????????????? ??????????????????????????? | | ?????????????????? ??????????????????????????? | | ?????????????????????????????????????????????????? | | ?????????????????????????????????????????????????? | | ?????????????????????????????????????????????????? | +----------------------------------------------------+ Best States ------------- Heat Dissipation 28 Energy Generation 19 Energy Capacity 430 Matter Stores 320 Matter Capacity 400 Sight Range 18 Robot Scan Range 14 Terrain Scan Density 10 ECM Strength 1 Evasion (%) 55 Recoil Reduction 3 Item Schematics ----------------- None Robot Schematics ------------------ None Fabricated ------------ Nothing Alien Tech Used ----------------- None Achievements -------------- None Challenges ------------ None Game ------ Seed CommEnhancedBeam Manual? 0 Play Time 00:18:05 Cumulative 3.3 hours Start 2024.04.05 @ 16:16:25 End 2024.04.05 @ 16:35:47 Sessions 3 Manual Loads 0 Difficulty Rogue Special Mode None Game No. 5 Rogue 5 Adventurer 0 Explorer 0 Win Type - Total 0 Types 0/0/0/0/0/0/0/0/0 Lore% 2 Gallery% 10 Achievement% 11 Wizard Run 0 Options --------- Layout 1 ASCII 0 Keyboard 0 Movement Arrows Keybinds 0 Fullscreen 1 Font 24/Smallcaps Map View 50x35 Zoom Use 0% Tactical HUD 0 Map Filters NONE Filters NONE Steam 1 RUN: 95e9f143-e8ca-4fc6-a3ce-efa20c37d8a1